fUST/lending_fUST_20240102
["ID","MTS","AMOUNT","RATE_DAILY","PERIOD"]
[309843272,1704196242461,-4933.64139148,0.00041095,7]
[309843274,1704196242474,-668.95860852,0.00041095,7]
[309843276,1704196242483,-267.22314741,0.00041095,7]
[309843278,1704196242492,-500.0,0.00041095,7]
[309843280,1704196242501,-500.0,0.00041095,7]
[309843281,1704196242510,-467.79304641,0.00041095,7]
[309843282,1704196242520,-500.0,0.00041095,7]
[309843283,1704196242529,-601.26,0.00041095,7]
[309843284,1704196242539,-206.40926479,0.00041095,7]
[309843285,1704196242549,-514.25619855,0.00041095,7]
[309843286,1704196242558,-500.0,0.00041095,7]
[309843287,1704196242567,-244.69405415,0.00041095,7]
[309843288,1704196242579,-255.30594585,0.00041095,7]
[309843290,1704196242588,-500.0,0.00041095,7]
[309843292,1704196242598,-202.42405415,0.00041095,7]
[309843294,1704196242611,-304.76765732,0.00041095,7]
[309843295,1704196242621,-500.0,0.00041095,7]
[309843297,1704196242631,-500.0,0.00041095,7]
[309843298,1704196242641,-3389.77,0.00041095,7]
[309843299,1704196242651,-500.0,0.00041095,7]
[309843300,1704196242660,-500.0,0.00041095,7]
[309843301,1704196242669,-500.0,0.00041095,7]
[309843303,1704196242678,-500.0,0.00041095,7]
[309843305,1704196242688,-201.40289304,0.00041095,7]
[309843308,1704196242697,-500.0,0.00041095,7]
[309843312,1704196242706,-500.0,0.00041095,7]
[309843313,1704196242715,-500.0,0.00041095,7]
[309843315,1704196242724,-500.0,0.00041095,7]
[309843317,1704196242733,-500.0,0.00041095,7]
[309843319,1704196242742,-500.0,0.00041095,7]
[309843321,1704196242751,-500.0,0.00041095,7]
[309843323,1704196242759,-500.0,0.00041095,7]
[309843325,1704196242769,-500.0,0.00041095,7]
[309843327,1704196242778,-522.7428503,0.00041095,7]
[309843329,1704196242787,-685.92,0.00041095,7]
[309843331,1704196242796,-500.0,0.00041095,7]
[309843333,1704196242805,-500.0,0.00041095,7]
[309843335,1704196242815,-500.0,0.00041095,7]
[309843337,1704196242824,-500.0,0.00041095,7]
[309843339,1704196242833,-500.0,0.00041095,7]
[309843341,1704196242843,-500.0,0.00041095,7]
[309843343,1704196242853,-500.0,0.00041095,7]
[309843345,1704196242863,-500.0,0.00041095,7]
[309843347,1704196242872,-330.4507849,0.00041095,7]
[309843349,1704196242881,-500.0,0.00041095,7]
[309843351,1704196242891,-500.0,0.00041095,7]
[309843353,1704196242901,-500.0,0.00041095,7]
[309843355,1704196242910,-500.0,0.00041095,7]
[309843357,1704196242919,-500.0,0.00041095,7]
[309843359,1704196242929,-500.0,0.00041095,7]
[309843361,1704196242938,-500.0,0.00041095,7]
[309843363,1704196242948,-500.0,0.00041095,7]
[309843365,1704196242957,-560.4237506,0.00041095,7]
[309843367,1704196242967,-500.0,0.00041095,7]
[309843369,1704196242978,-500.0,0.00041095,7]
[309843371,1704196242987,-4028.20690821,0.00041095,7]
[309843378,1704196243045,-85.81309179,0.00041095,7]
[309843380,1704196243055,-500.0,0.00041095,7]
[309843382,1704196243064,-517.09167103,0.00041095,7]
[309843384,1704196243074,-3942.91,0.00041095,7]
[309843386,1704196243084,-500.0,0.00041095,7]
[309843388,1704196243094,-501.29674734,0.00041095,7]
[309843390,1704196243104,-500.0,0.00041095,7]
[309843392,1704196243113,-500.0,0.00041095,7]
[309843394,1704196243122,-2517.57,0.00041095,7]
[309843396,1704196243132,-500.0,0.00041095,7]
[309843398,1704196243141,-500.0,0.00041095,7]
[309843400,1704196243150,-917.5,0.00041095,7]
[309843401,1704196243160,-480.20126036,0.00041095,2]
[309843404,1704196243169,-500.0,0.00041095,7]
[309843406,1704196243179,-500.0,0.00041095,7]
[309843408,1704196243189,-500.0,0.00041095,7]
[309843409,1704196243199,-500.0,0.00041095,7]
[309843411,1704196243208,-500.0,0.00041095,7]
[309843413,1704196243218,-500.0,0.00041095,7]
[309843415,1704196243227,-500.0,0.00041095,7]
[309843417,1704196243237,-500.0,0.00041095,7]
[309843420,1704196243246,-508.2479361,0.00041095,7]
[309843421,1704196243256,-626.71,0.00041095,7]
[309843423,1704196243266,-500.0,0.00041095,7]
[309843425,1704196243275,-500.0,0.00041095,7]
[309843427,1704196243285,-500.0,0.00041095,7]
[309843429,1704196243294,-500.0,0.00041095,2]
[309843431,1704196243303,-500.0,0.00041095,7]
[309843433,1704196243312,-474.659453,0.00041095,2]
[309843435,1704196243320,-474.659453,0.00041095,2]
[309843437,1704196243330,-7364.9879701,0.00041096,15]
[309843439,1704196243339,-160.587746,0.0004122,30]
[309843441,1704196243348,-152.70249,0.0004122,30]
[309843443,1704196243357,-650.718476,0.0004122,30]
[309843445,1704196243367,-174.893695,0.0004122,30]
[309843447,1704196243376,-461.14683005,0.00041231,7]
[309843449,1704196243386,-276.06706121,0.00041231,7]
[309843451,1704196243397,-165.79320956,0.00041231,7]
[309843453,1704196243406,-507.4032659,0.00041232,7]
[309843455,1704196243415,-500.0,0.00041232,4]
[309843457,1704196243424,-500.0,0.00041232,7]
[309843459,1704196243433,-500.0,0.00041232,7]
[309843461,1704196243443,-500.0,0.00041232,7]
[309843463,1704196243452,-504.08580467,0.00041232,7]
[309843465,1704196243461,-500.0,0.00041232,7]
[309843467,1704196243470,-500.0,0.00041232,7]
[309843469,1704196243479,-500.0,0.00041232,7]
[309843471,1704196243489,-150.0,0.00041232,7]
[309843474,1704196243499,-500.0,0.00041232,7]
[309843476,1704196243508,-500.0,0.00041232,7]
[309843477,1704196243517,-584.98026133,0.00041232,7]
[309843480,1704196243526,-501.65209593,0.00041232,7]
[309843482,1704196243536,-500.0,0.00041232,7]
[309843484,1704196243545,-500.0,0.00041232,7]
[309843486,1704196243554,-500.0,0.00041232,7]
[309843488,1704196243563,-500.00000001,0.00041232,7]
[309843489,1704196243572,-500.0,0.00041232,7]
[309843492,1704196243582,-503.96848115,0.00041232,7]
[309843493,1704196243591,-509.57499966,0.00041232,7]
[309843495,1704196243601,-500.0,0.00041232,7]
[309843498,1704196243610,-562.23284822,0.00041232,7]
[309843499,1704196243619,-535.22861133,0.00041232,7]
[309843502,1704196243629,-456.99652081,0.00041232,7]
[309843504,1704196243638,-503.95710297,0.00041232,7]
[309843505,1704196243648,-500.0,0.00041232,7]
[309843507,1704196243657,-500.0,0.00041232,7]
[309843509,1704196243666,-500.0,0.00041232,7]
[309843511,1704196243675,-506.27534385,0.00041232,7]
[309843514,1704196243685,-500.87962204,0.00041232,7]
[309843516,1704196243694,-500.0,0.00041232,7]
[309843518,1704196243703,-348.1015584,0.00041232,7]
[309843519,1704196243713,-500.0,0.00041232,7]
[309843521,1704196243721,-501.58782283,0.00041232,7]
[309843524,1704196243731,-500.0,0.00041232,7]
[309843525,1704196243740,-500.0,0.00041232,7]
[309843528,1704196243750,-500.0,0.00041232,7]
[309843530,1704196243759,-231.59900736,0.00041232,7]
[309843532,1704196243768,-500.0,0.00041232,7]
[309843534,1704196243777,-435.2257963,0.00041232,7]
[309843536,1704196243786,-500.0,0.00041232,7]
[309843538,1704196243795,-500.0,0.00041232,7]
[309843540,1704196243804,-1371.7,0.00041232,7]
[309843542,1704196243814,-981.49,0.00041232,7]
[309843550,1704196243881,-500.0,0.00041232,7]
[309843552,1704196243891,-352.20417234,0.00041232,7]
[309843554,1704196243901,-500.0,0.00041232,7]
[309843556,1704196243911,-500.0,0.00041232,7]
[309843558,1704196243920,-500.0,0.00041232,7]
[309843560,1704196243930,-500.0,0.00041232,7]
[309843562,1704196243940,-500.0,0.00041232,7]
[309843564,1704196243950,-500.0,0.00041232,7]
[309843566,1704196243959,-578.5486869,0.00041232,7]
[309843568,1704196243969,-500.0,0.00041232,7]
[309843570,1704196243977,-500.0,0.00041232,2]
[309843572,1704196243988,-500.0,0.00041232,7]
[309843574,1704196243997,-223.23790234,0.00041232,7]
[309843576,1704196244006,-500.0,0.00041232,7]
[309843578,1704196244015,-500.0,0.00041232,7]
[309843580,1704196244024,-501.38464455,0.00041232,7]
[309843582,1704196244034,-1242.49,0.00041232,7]
[309843584,1704196244043,-500.0,0.00041232,7]
[309843586,1704196244052,-500.0,0.00041232,7]
[309843588,1704196244061,-500.0,0.00041232,7]
[309843590,1704196244070,-500.0,0.00041232,7]
[309843592,1704196244079,-511.63726716,0.00041232,7]
[309843594,1704196244089,-500.0,0.00041232,7]
[309843596,1704196244098,-529.08525252,0.00041232,7]
[309843598,1704196244107,-500.0,0.00041232,7]
[309843600,1704196244116,-507.0645809,0.00041232,7]
[309843602,1704196244125,-500.0,0.00041232,7]
[309843604,1704196244134,-510.42695868,0.00041232,7]
[309843605,1704196244144,-507.12318767,0.00041232,7]
[309843607,1704196244153,-500.0,0.00041232,7]
[309843609,1704196244162,-505.24422187,0.00041232,7]
[309843611,1704196244171,-500.0,0.00041232,7]
[309843614,1704196244181,-500.0,0.00041232,7]
[309843615,1704196244190,-500.0,0.00041232,7]
[309843617,1704196244201,-500.0,0.00041232,7]
[309843620,1704196244211,-500.0,0.00041232,7]
[309843622,1704196244220,-503.5416314,0.00041232,7]
[309843623,1704196244229,-500.0,0.00041232,7]
[309843625,1704196244238,-613.75424218,0.00041232,7]
[309843626,1704196244247,-500.0,0.00041232,7]
[309843628,1704196244257,-500.0,0.00041232,7]
[309843630,1704196244266,-500.0,0.00041232,7]
[309843632,1704196244275,-2163.45,0.00041232,7]
[309843634,1704196244284,-648.15828433,0.00041232,7]
[309843636,1704196244293,-500.0,0.00041232,7]
[309843638,1704196244302,-535.07169261,0.00041232,7]
[309843640,1704196244311,-500.0,0.00041232,7]
[309843642,1704196244319,-500.0,0.00041232,7]
[309843644,1704196244329,-500.0,0.00041232,7]
[309843646,1704196244338,-500.0,0.00041232,7]
[309843647,1704196244347,-500.0,0.00041232,7]
[309843649,1704196244357,-526.42836703,0.00041232,7]
[309843651,1704196244367,-500.0,0.00041232,7]
[309843653,1704196244376,-500.0,0.00041232,7]
[309843655,1704196244385,-500.0,0.00041232,7]
[309843657,1704196244397,-500.0,0.00041232,7]
[309843659,1704196244407,-500.0,0.00041232,7]
[309843661,1704196244416,-500.0,0.00041232,7]
[309843663,1704196244425,-500.0,0.00041232,7]
[309843665,1704196244434,-500.0,0.00041232,7]
[309843667,1704196244444,-505.83205928,0.00041232,7]
[309843669,1704196244453,-500.0,0.00041232,7]
[309843671,1704196244462,-501.44197547,0.00041232,7]
[309843673,1704196244471,-500.0,0.00041232,7]
[309843675,1704196244480,-500.0,0.00041232,7]
[309843677,1704196244490,-500.0,0.00041232,7]
[309843679,1704196244499,-500.0,0.00041232,7]
[309843681,1704196244511,-226.29236931,0.00041232,7]
[309843683,1704196244520,-500.0,0.00041232,7]
[309843685,1704196244529,-241.17210933,0.00041232,7]
[309843687,1704196244539,-500.0,0.00041232,7]
[309843688,1704196244548,-86.61900086,0.00041232,7]
[309843691,1704196244562,-416.24664889,0.00041232,7]
[309843693,1704196244572,-500.0,0.00041232,7]
[309843695,1704196244581,-500.0,0.00041232,7]
[309843697,1704196244590,-500.0,0.00041232,7]
[309843699,1704196244599,-445.73415271,0.00041232,7]
[309843701,1704196244608,-451.29735976,0.00041232,7]
[309843703,1704196244618,-500.0,0.00041232,7]
[309843705,1704196244626,-500.0,0.00041232,7]
[309843707,1704196244636,-500.0,0.00041232,7]
[309843709,1704196244647,-500.0,0.00041232,7]
[309843711,1704196244656,-284.58019569,0.00041232,7]
[309843713,1704196244665,-500.0,0.00041232,7]
[309843715,1704196244675,-311.609951,0.00041232,7]
[309843716,1704196244684,-500.0,0.00041232,7]
[309843718,1704196244692,-500.0,0.00041232,7]
[309843720,1704196244701,-500.0,0.00041232,7]
[309843722,1704196244711,-500.0,0.00041232,7]
[309843724,1704196244720,-960.61,0.00041232,7]
[309843726,1704196244728,-500.0,0.00041232,7]
[309843728,1704196244737,-500.0,0.00041232,7]
[309843730,1704196244746,-958.01,0.00041232,7]
[309843732,1704196244756,-500.0,0.00041232,7]
[309843734,1704196244765,-500.0,0.00041232,7]
[309843736,1704196244774,-500.0,0.00041232,7]
[309843738,1704196244783,-508.96571711,0.00041232,7]
[309843740,1704196244792,-500.0,0.00041232,7]
[309843742,1704196244801,-500.0,0.00041232,7]
[309843744,1704196244811,-512.68359434,0.00041232,7]
[309843746,1704196244820,-504.12430121,0.00041232,7]
[309843748,1704196244830,-525.23,0.00041232,7]
[309843750,1704196244839,-508.90637175,0.00041232,7]
[309843752,1704196244849,-649.21,0.00041232,7]
[309843754,1704196244859,-500.0,0.00041232,7]
[309843756,1704196244869,-500.0,0.00041232,7]
[309843758,1704196244878,-500.0,0.00041232,7]
[309843760,1704196244891,-500.0,0.00041232,7]
[309843762,1704196244900,-500.0,0.00041232,7]
[309843764,1704196244909,-526.63744348,0.00041232,7]
[309843765,1704196244918,-287.36103913,0.00041232,7]
[309843767,1704196244929,-533.7215135,0.00041232,7]
[309843769,1704196244938,-500.0,0.00041232,7]
[309843771,1704196244947,-503.78413883,0.00041232,7]
[309843773,1704196244956,-500.0,0.00041232,7]
[309843775,1704196244966,-500.0,0.00041232,7]
[309843777,1704196244976,-500.0,0.00041232,7]
[309843779,1704196244985,-435.02444488,0.00041232,7]
[309843781,1704196244995,-500.0,0.00041232,7]
[309843783,1704196245006,-500.0,0.00041232,7]
[309843785,1704196245016,-500.0,0.00041232,7]
[309843787,1704196245026,-3166.11,0.00041232,7]
[309843789,1704196245037,-500.0,0.00041232,7]
[309843791,1704196245047,-500.0,0.00041232,7]
[309843793,1704196245056,-500.0,0.00041232,7]
[309843795,1704196245066,-500.0,0.00041232,7]
[309843797,1704196245075,-627.98652162,0.00041232,7]
[309843799,1704196245086,-500.0,0.00041232,7]
[309843801,1704196245096,-500.0,0.00041232,7]
[309843803,1704196245106,-22670.09,0.00041232,3]
[309843805,1704196245115,-500.0,0.00041232,7]
[309843807,1704196245124,-500.0,0.00041232,7]
[309843809,1704196245134,-500.0,0.00041232,7]
[309843811,1704196245144,-500.0,0.00041232,7]
[309843813,1704196245153,-502.91288221,0.00041232,7]
[309843815,1704196245162,-500.0,0.00041232,7]
[309843817,1704196245172,-500.0,0.00041232,7]
[309843819,1704196245181,-500.0,0.00041232,7]
[309843821,1704196245190,-500.0,0.00041232,7]
[309843823,1704196245200,-500.0,0.00041232,7]
[309843825,1704196245209,-515.67864189,0.00041232,7]
[309843827,1704196245217,-500.0,0.00041232,7]
[309843829,1704196245227,-5602.6,0.00041232,7]
[309843831,1704196245236,-500.0,0.00041232,7]
[309843833,1704196245245,-500.0,0.00041232,7]
[309843835,1704196245254,-157.5696183,0.00041232,7]
[309843837,1704196245263,-601.26,0.00041232,7]
[309843839,1704196245272,-507.81855575,0.00041232,7]
[309843843,1704196245339,-500.0,0.00041232,7]
[309843844,1704196245354,-500.0,0.00041232,7]
[309843845,1704196245363,-623.74779292,0.00041232,7]
[309843846,1704196245373,-500.0,0.00041232,7]
[309843847,1704196245382,-3389.77,0.00041232,7]
[309843848,1704196245392,-500.0,0.00041232,7]
[309843849,1704196245401,-500.0,0.00041232,7]
[309843850,1704196245410,-500.0,0.00041232,7]
[309843851,1704196245419,-290.69939503,0.00041232,7]
[309843852,1704196245460,-230.79051349,0.00041232,7]
[309843853,1704196245469,-500.0,0.00041232,7]
[309843855,1704196245478,-500.0,0.00041232,7]
[309843857,1704196245488,-500.0,0.00041232,7]
[309843859,1704196245499,-500.0,0.00041232,7]
[309843861,1704196245508,-500.0,0.00041232,7]
[309843863,1704196245517,-500.0,0.00041232,7]
[309843865,1704196245526,-685.92,0.00041232,7]
[309843867,1704196245535,-304.81222651,0.00041232,7]
[309843870,1704196245548,-196.28199576,0.00041232,7]
[309843871,1704196245557,-500.0,0.00041232,7]
[309843874,1704196245567,-500.0,0.00041232,7]
[309843875,1704196245577,-500.0,0.00041232,7]
[309843878,1704196245587,-500.0,0.00041232,7]
[309843879,1704196245596,-500.0,0.00041232,7]
[309843881,1704196245606,-500.0,0.00041232,7]
[309843884,1704196245615,-500.0,0.00041232,7]
[309843886,1704196245625,-502.74095523,0.00041232,7]
[309843888,1704196245634,-500.0,0.00041232,7]
[309843890,1704196245644,-500.0,0.00041232,7]
[309843892,1704196245653,-500.0,0.00041232,7]
[309843894,1704196245662,-500.0,0.00041232,7]
[309843896,1704196245672,-501.27100757,0.00041232,7]
[309843898,1704196245681,-4114.02,0.00041232,7]
[309843900,1704196245690,-500.0,0.00041232,7]
[309843901,1704196245699,-3942.91,0.00041232,7]
[309843904,1704196245709,-500.0,0.00041232,7]
[309843906,1704196245718,-505.08059759,0.00041232,7]
[309843908,1704196245727,-500.0,0.00041232,7]
[309843910,1704196245736,-2517.57,0.00041232,7]
[309843912,1704196245745,-500.97550861,0.00041232,7]
[309843913,1704196245754,-500.0,0.00041232,7]
[309843915,1704196245764,-917.5,0.00041232,7]
[309843918,1704196245773,-500.0,0.00041232,7]
[309843919,1704196245782,-500.0,0.00041232,7]
[309843921,1704196245791,-504.74898501,0.00041232,7]
[309843923,1704196245800,-456.63432085,0.00041232,7]
[309843925,1704196245809,-500.0,0.00041232,7]
[309843927,1704196245819,-500.0,0.00041232,7]
[309843929,1704196245828,-458.37394212,0.00041232,7]
[309844039,1704196246842,-631.32723953,0.00041094,2]
[309844041,1704196246851,-500.0,0.00041095,7]
[309844043,1704196246861,-8174.11,0.00041222,3]
[309844045,1704196246870,-3973.12712542,0.00041231,4]
[309844047,1704196246880,-41.62605788,0.00041232,7]
[309844049,1704196246890,-500.0,0.00041232,7]
[309844051,1704196246900,-626.71,0.00041232,7]
[309844053,1704196246909,-368.80845223,0.00041232,7]
[309844055,1704196246919,-240.51811612,0.00041232,7]
[309844061,1704196246965,-11.95608508,0.00041232,7]
[309844063,1704196246978,-500.0,0.00041232,7]
[309844065,1704196246987,-500.0,0.00041232,7]
[309844067,1704196246997,-474.659453,0.00041232,7]
[309844068,1704196247011,-474.659453,0.00041232,7]
[309844070,1704196247022,-474.659453,0.00041232,7]
[309844073,1704196247033,-474.659453,0.00041232,7]
[309844075,1704196247042,-474.659453,0.00041232,7]
[309844076,1704196247052,-474.659453,0.00041232,7]
[309844079,1704196247063,-1323.725094,0.00041232,7]
[309844081,1704196247073,-1323.725094,0.00041232,7]
[309844083,1704196247083,-151.0,0.00041232,2]
[309844085,1704196247093,-4000.0,0.00041262,3]
[309844086,1704196247103,-179.51,0.0004129,60]
[309844088,1704196247113,-500.0,0.00041369,4]
[309844091,1704196247123,-500.0,0.00041369,7]
[309844092,1704196247133,-500.0,0.00041369,7]
[309844095,1704196247144,-500.0,0.00041369,7]
[309844096,1704196247154,-500.0,0.00041369,7]
[309844098,1704196247163,-647.49772798,0.00041369,7]
[309844101,1704196247173,-150.0,0.00041369,7]
[309844102,1704196247183,-500.0,0.00041369,7]
[309844104,1704196247192,-500.0,0.00041369,7]
[309844106,1704196247202,-408.04625137,0.00041369,7]
[309844109,1704196247211,-500.0,0.00041369,7]
[309844111,1704196247220,-500.0,0.00041369,7]
[309844113,1704196247230,-500.0,0.00041369,7]
[309844114,1704196247239,-500.0,0.00041369,7]
[309844117,1704196247249,-511.78988023,0.00041369,7]
[309844118,1704196247258,-500.0,0.00041369,7]
[309844120,1704196247267,-500.0,0.00041369,7]
[309844123,1704196247278,-500.0,0.00041369,7]
[309844124,1704196247286,-194.43433399,0.00041369,7]
[309844126,1704196247295,-292.49371244,0.00041369,7]
[309844128,1704196247305,-500.0,0.00041369,7]
[309844130,1704196247315,-500.0,0.00041369,7]
[309844132,1704196247324,-500.0,0.00041369,7]
[309844134,1704196247333,-1371.7,0.00041369,7]
[309844136,1704196247343,-981.49,0.00041369,7]
[309844138,1704196247352,-500.0,0.00041369,7]
[309844140,1704196247361,-515.85994366,0.00041369,7]
[309844142,1704196247371,-500.0,0.00041369,7]
[309844145,1704196247381,-620.87649819,0.00041369,7]
[309844146,1704196247391,-500.0,0.00041369,7]
[309844149,1704196247401,-500.0,0.00041369,7]
[309844151,1704196247413,-500.0,0.00041369,7]
[309844153,1704196247423,-504.04745941,0.00041369,7]
[309844155,1704196247432,-500.0,0.00041369,2]
[309844157,1704196247441,-501.88365766,0.00041369,7]
[309844159,1704196247450,-500.0,0.00041369,7]
[309844161,1704196247459,-1242.49,0.00041369,7]
[309844162,1704196247468,-502.38654514,0.00041369,7]
[309844165,1704196247478,-500.0,0.00041369,7]
[309844166,1704196247488,-500.0,0.00041369,7]
[309844169,1704196247498,-506.94734692,0.00041369,7]
[309844170,1704196247507,-507.10807147,0.00041369,7]
[309844173,1704196247516,-367.88176433,0.00041369,7]
[309844174,1704196247526,-500.0,0.00041369,7]
[309844177,1704196247536,-628.73149565,0.00041369,7]
[309844178,1704196247545,-521.04188704,0.00041369,7]
[309844186,1704196247609,-500.0,0.00041369,7]
[309844188,1704196247618,-502.94656177,0.00041369,7]
[309844190,1704196247628,-500.0,0.00041369,7]
[309844192,1704196247637,-556.09118722,0.00041369,7]
[309844194,1704196247650,-500.0,0.00041369,7]
[309844196,1704196247659,-514.71288415,0.00041369,7]
[309844198,1704196247669,-500.0,0.00041369,7]
[309844200,1704196247678,-2163.45,0.00041369,7]
[309844202,1704196247687,-500.0,0.00041369,7]
[309844204,1704196247697,-508.44288091,0.00041369,7]
[309844206,1704196247706,-500.0,0.00041369,7]
[309844208,1704196247715,-506.24436151,0.00041369,7]
[309844210,1704196247724,-621.66743172,0.00041369,7]
[309844212,1704196247733,-500.0,0.00041369,7]
[309844213,1704196247742,-511.13209528,0.00041369,7]
[309844216,1704196247752,-500.0,0.00041369,7]
[309844217,1704196247761,-500.0,0.00041369,7]
[309844219,1704196247770,-500.0,0.00041369,7]
[309844221,1704196247779,-503.76871091,0.00041369,7]
[309844223,1704196247788,-500.0,0.00041369,7]
[309844225,1704196247798,-500.0,0.00041369,7]
[309844228,1704196247808,-502.38449293,0.00041369,7]
[309844229,1704196247818,-500.0,0.00041369,7]
[309844232,1704196247829,-202.56545927,0.00041369,7]
[309844234,1704196247839,-500.0,0.00041369,7]
[309844235,1704196247849,-500.0,0.00041369,7]
[309844237,1704196247859,-500.0,0.00041369,7]
[309844239,1704196247868,-600.59129394,0.00041369,7]
[309844241,1704196247877,-498.12549123,0.00041369,7]
[309844243,1704196247887,-617.18928193,0.00041369,7]
[309844245,1704196247900,-502.96994907,0.00041369,7]
[309844247,1704196247910,-506.05113733,0.00041369,7]
[309844248,1704196247920,-500.0,0.00041369,7]
[309844249,1704196247930,-500.0,0.00041369,7]
[309844250,1704196247939,-500.0,0.00041369,7]
[309844251,1704196247949,-500.0,0.00041369,7]
[309844252,1704196247959,-500.0,0.00041369,7]
[309844253,1704196247970,-500.0,0.00041369,7]
[309844254,1704196247981,-500.0,0.00041369,7]
[309844255,1704196247991,-960.61,0.00041369,7]
[309844256,1704196248001,-503.46402141,0.00041369,7]
[309844257,1704196248012,-500.0,0.00041369,7]
[309844258,1704196248022,-505.38129326,0.00041369,7]
[309844259,1704196248032,-500.0,0.00041369,7]
[309844260,1704196248043,-232.76638391,0.00041369,7]
[309844261,1704196248053,-502.85488882,0.00041369,7]
[309844262,1704196248062,-500.0,0.00041369,7]
[309844264,1704196248072,-525.23,0.00041369,7]
[309844266,1704196248082,-649.21,0.00041369,7]
[309844268,1704196248095,-500.0,0.00041369,7]
[309844270,1704196248104,-500.0,0.00041369,7]
[309844272,1704196248114,-500.0,0.00041369,7]
[309844274,1704196248123,-520.91411192,0.00041369,7]
[309844276,1704196248134,-537.09073556,0.00041369,7]
[309844278,1704196248145,-513.43077945,0.00041369,7]
[309844280,1704196248154,-500.0,0.00041369,7]
[309844282,1704196248163,-500.0,0.00041369,7]
[309844284,1704196248172,-292.26288741,0.00041369,7]
[309844286,1704196248182,-500.0,0.00041369,7]
[309844288,1704196248191,-500.0,0.00041369,7]
[309844290,1704196248200,-3166.11,0.00041369,7]
[309844292,1704196248209,-500.0,0.00041369,7]
[309844294,1704196248218,-500.0,0.00041369,7]
[309844296,1704196248227,-510.1881942,0.00041369,7]
[309844298,1704196248236,-500.0,0.00041369,7]
[309844300,1704196248246,-500.0,0.00041369,7]
[309844302,1704196248255,-500.0,0.00041369,7]
[309844304,1704196248265,-22670.09,0.00041369,3]
[309844306,1704196248274,-500.0,0.00041369,7]
[309844308,1704196248282,-500.0,0.00041369,7]
[309844310,1704196248292,-500.0,0.00041369,7]
[309844312,1704196248300,-500.0,0.00041369,7]
[309844314,1704196248310,-510.22535791,0.00041369,7]
[309844316,1704196248319,-555.2372763,0.00041369,7]
[309844318,1704196248328,-500.0,0.00041369,7]
[309844320,1704196248336,-500.0,0.00041369,7]
[309844322,1704196248346,-505.9546491,0.00041369,7]
[309844324,1704196248355,-500.0,0.00041369,7]
[309844326,1704196248364,-5602.6,0.00041369,7]
[309844328,1704196248374,-281.8288388,0.00041369,7]
[309844330,1704196248385,-500.0,0.00041369,7]
[309844332,1704196248396,-601.26,0.00041369,7]
[309844334,1704196248406,-500.0,0.00041369,7]
[309844336,1704196248415,-504.08608425,0.00041369,7]
[309844338,1704196248425,-500.0,0.00041369,7]
[309844340,1704196248434,-3389.77,0.00041369,7]
[309844342,1704196248444,-500.0,0.00041369,7]
[309844344,1704196248454,-500.0,0.00041369,7]
[309844346,1704196248465,-562.67162828,0.00041369,7]
[309844348,1704196248474,-500.0,0.00041369,7]
[309844350,1704196248484,-500.0,0.00041369,7]
[309844352,1704196248494,-500.0,0.00041369,7]
[309844354,1704196248503,-500.0,0.00041369,7]
[309844356,1704196248512,-500.0,0.00041369,7]
[309844358,1704196248521,-611.36205898,0.00041369,7]